bitfinex/quotes_SOLUSD_20260113
["timestamp","ask_amount","ask_price","bid_price","bid_amount"]
[1768326606398,3.52559339,142.87,142.84,0.65587516]
[1768326606602,3.52559339,142.85,142.81,7.71244164]
[1768326606793,3.52559339,142.85,142.82,0.71040772]
[1768326607106,7.64918013,142.86,142.82,0.71040772]
[1768326607289,3.52559339,142.85,142.82,0.71040772]
[1768326607595,3.52559339,142.84,142.81,0.71040772]
[1768326607896,0.18789323,142.85,142.82,0.71040772]
[1768326607897,3.52559339,142.85,142.82,0.71040772]
[1768326608083,3.69850971,142.85,142.81,7.71265896]
[1768326608701,0.17291632,142.85,142.81,7.71265896]
[1768326609192,10.69900643,142.85,142.81,7.71262347]
[1768326609396,3.69850971,142.85,142.81,7.71262347]
[1768326609590,10.69899092,142.85,142.81,7.71262347]
[1768326610095,0.17777903,142.83,142.78,4.23600111]
[1768326610397,0.17777903,142.83,142.79,11.23914214]
[1768326610976,7.66526092,142.84,142.8,0.71040772]
[1768326611295,0.66409916,142.84,142.8,4.23600111]
[1768326611690,7.66499203,142.84,142.8,4.23600111]
[1768326611881,7.000127,142.86,142.82,0.71040772]
[1768326612075,10.52572039,142.86,142.82,0.71040772]
[1768326612295,11.18981955,142.86,142.82,0.71040772]
[1768326612482,0.17291632,142.85,142.82,0.71040772]
[1768326612682,0.17291632,142.85,142.81,4.23600111]
[1768326612891,0.17291632,142.85,142.81,11.23809933]
[1768326613098,7.17332331,142.85,142.81,11.23809933]
[1768326613288,7.17332331,142.85,142.81,7.71250594]
[1768326613489,7.17332331,142.85,142.81,11.23809933]
[1768326613808,0.17291632,142.85,142.81,11.23809933]
[1768326614278,7.17330316,142.85,142.81,11.23809933]
[1768326614776,7.17330316,142.85,142.81,7.71250594]
[1768326615072,7.17330316,142.85,142.81,0.71040772]
[1768326615499,7.17330316,142.85,142.8,10.5282682]
[1768326615802,0.66409916,142.81,142.77,7.00399455]
[1768326616097,0.6540454,142.82,142.78,10.5292469]
[1768326616299,0.6540454,142.82,142.78,7.00365351]
[1768326616903,0.6540454,142.82,142.78,10.5292469]
[1768326617492,0.6540454,142.82,142.79,0.67396852]
[1768326617688,23.94065461,142.84,142.79,4.19956191]
[1768326617890,20.41506122,142.84,142.8,0.67396852]
[1768326618285,7.65506122,142.84,142.8,0.67396852]
[1768326618492,7.65452821,142.85,142.81,0.67396852]
[1768326619398,0.6540454,142.85,142.82,0.67396852]
[1768326619792,20.41331396,142.88,142.83,4.19956191]
[1768326619993,20.41331396,142.88,142.84,0.67396852]
[1768326620706,6.99926856,142.88,142.85,0.67396852]
[1768326621207,7.65331396,142.88,142.85,0.67396852]
[1768326621406,0.6540454,142.87,142.81,0.67396852]
[1768326621604,10.52486195,142.88,142.79,80.3077985]
[1768326621605,0.6540454,142.85,142.8,0.67396852]
[1768326621910,0.6540454,142.85,142.81,4.19956191]
[1768326622409,0.6540454,142.85,142.81,11.20164848]
[1768326622790,4.17963879,142.87,142.82,7.67578614]
[1768326623005,0.6540454,142.87,142.83,0.67396852]
[1768326623303,7.65359568,142.87,142.83,0.67396852]
[1768326624007,0.6540454,142.85,142.81,0.67396852]
[1768326624210,0.6540454,142.85,142.81,4.19956191]
[1768326624415,0.6540454,142.85,142.78,17.50868904]
[1768326624416,0.6540454,142.84,142.8,0.67396852]
[1768326624629,3.52559339,142.84,142.78,3.52559339]
[1768326624790,0.6540454,142.82,142.78,11.20330049]
[1768326624985,0.6540454,142.82,142.76,17.51182522]
[1768326624986,0.6540454,142.82,142.77,0.67396852]
[1768326625192,7.00231076,142.81,142.77,11.2037825]
[1768326625403,0.6540454,142.81,142.77,4.19956191]
[1768326625597,0.6540454,142.79,142.73,0.67396852]
[1768326625820,0.6540454,142.79,142.74,4.19956191]
[1768326625993,0.6540454,142.79,142.75,4.19956191]
[1768326626200,0.6540454,142.8,142.76,0.67396852]
[1768326626815,0.6540454,142.8,142.71,27.76]
[1768326626816,12.76,142.81,142.77,0.67396852]
[1768326627208,20.41668303,142.81,142.77,0.67396852]
[1768326628220,12.76,142.81,142.78,0.67396852]
[1768326628402,7.65604041,142.82,142.78,0.67396852]
[1768326628601,4.17963879,142.79,142.75,0.67396852]
[1768326629300,4.17963879,142.77,142.73,0.67396852]
[1768326629494,0.6540454,142.76,142.71,4.19956191]
[1768326629696,4.1496388,142.76,142.72,0.67396852]
[1768326630001,3.52559339,142.76,142.72,0.67396852]
[1768326631416,3.52559339,142.76,142.72,7.68067692]
[1768326632521,10.53039192,142.76,142.72,7.68067692]
[1768326633013,11.18443732,142.76,142.72,7.68067692]
[1768326633722,10.53039192,142.76,142.72,7.68067692]
[1768326634037,3.52559339,142.76,142.72,7.68067692]
[1768326634206,10.52950453,142.78,142.73,0.67396852]
[1768326634821,11.21072164,142.79,142.74,0.69199336]
[1768326635015,91.2293365,142.81,142.75,0.69199336]
[1768326635016,0.68163857,142.81,142.75,0.69199336]
[1768326635220,4.20723196,142.81,142.76,0.69199336]
[1768326635421,3.52559339,142.81,142.77,0.69199336]
[1768326636925,7.6836585,142.82,142.77,7.69616209]
[1768326637130,3.52559339,142.81,142.77,7.69616209]
[1768326637326,10.52761332,142.82,142.78,0.69199336]
[1768326637537,3.52559339,142.82,142.78,0.69199336]
[1768326637755,10.52708292,142.83,142.78,0.69199336]
[1768326638031,11.20872149,142.83,142.78,0.69199336]
[1768326638234,3.52559339,142.82,142.78,0.69199336]
[1768326638821,3.52559339,142.82,142.78,7.69562395]
[1768326639831,11.20872149,142.83,142.79,0.69199336]
[1768326640137,11.20872149,142.83,142.79,7.69523119]
[1768326640337,7.6831281,142.83,142.79,7.69523119]
[1768326640846,11.20872149,142.83,142.79,0.69199336]
[1768326641022,0.68163857,142.82,142.78,7.00356507]
[1768326641221,4.20723196,142.82,142.78,7.00356507]
[1768326641945,11.20934054,142.82,142.78,7.00356507]
[1768326642242,11.20934054,142.82,142.77,11.22167247]
[1768326642645,11.20934054,142.82,142.78,0.69199336]
[1768326642847,7.68374715,142.82,142.78,0.69199336]
[1768326643141,10.52714303,142.83,142.79,0.69199336]
[1768326643326,11.2087816,142.83,142.79,0.69199336]
[1768326643846,7.68318821,142.83,142.79,0.69199336]
[1768326645142,7.0018256,142.82,142.79,0.69199336]
[1768326645353,7.68198858,142.85,142.8,0.69199336]
[1768326645525,20.46172025,142.86,142.82,4.21758675]
[1768326645724,11.20652107,142.88,142.83,0.69199336]
[1768326645933,0.68163857,142.88,142.83,4.21758675]
[1768326646120,3.52559339,142.89,142.83,4.21758675]
[1768326647148,6.99937005,142.87,142.83,0.69199336]
[1768326648537,6.99937005,142.87,142.84,0.69199336]
[1768326650429,3.52559339,142.88,142.85,0.69199336]
[1768326650430,6.99888017,142.88,142.85,0.69199336]
[1768326650632,10.52418981,142.89,142.85,0.69199336]
[1768326653549,3.52559339,142.89,142.85,7.69200387]
[1768326653752,19.87820376,142.9,142.87,0.69199336]
[1768326656353,20.55456928,142.9,142.86,0.69199336]
[1768326656658,40.89854872,142.9,142.86,0.69199336]
[1768326656858,19.87820376,142.9,142.86,0.69199336]
[1768326658354,40.89854872,142.9,142.86,0.69199336]
[1768326659364,39.62965905,142.9,142.86,0.69199336]
[1768326661246,2.25670372,142.89,142.86,0.69199336]
[1768326662066,6.99888017,142.88,142.86,0.69199336]
[1768326662270,0.66613213,142.86,142.79,7.98062437]
[1768326662443,2.25670372,142.83,142.77,62.8]
[1768326662766,2.25670372,142.82,142.77,2.94869708]
[1768326662953,2.25670372,142.83,142.78,0.69199336]
[1768326663155,2.25670372,142.83,142.77,2.94869708]
[1768326663352,2.25670372,142.83,142.78,2.94869708]
[1768326663666,2.25670372,142.83,142.78,0.69199336]
[1768326663968,7.00182047,142.82,142.78,0.69199336]
[1768326664168,6.97182047,142.82,142.78,0.69199336]
[1768326664554,6.97182047,142.82,142.78,7.69570814]
[1768326665285,2.25670372,142.82,142.78,7.69570814]
[1768326665450,12.76,142.84,142.79,0.68766484]
[1768326665651,2.25670372,142.83,142.79,0.68766484]
[1768326666048,2.25670372,142.83,142.8,0.68766484]
[1768326666269,2.25670372,142.82,142.8,0.68766484]
[1768326666577,2.22670372,142.82,142.8,0.68766484]
[1768326666762,2.25670372,142.83,142.8,0.68766484]
[1768326667166,2.25670372,142.81,142.78,7.69109077]
[1768326668754,9.25926144,142.81,142.78,0.68766484]
[1768326669166,2.25670372,142.81,142.78,7.69141426]
[1768326669367,2.25670372,142.81,142.78,0.68766484]
[1768326669677,7.16776545,142.83,142.78,0.68766484]
[1768326669884,2.25670372,142.81,142.78,0.68766484]
[1768326670480,7.16776545,142.83,142.78,0.68766484]
[1768326670661,2.25670372,142.82,142.79,0.68766484]
[1768326671377,7.00182009,142.83,142.79,0.68766484]
[1768326671378,15.01670372,142.84,142.79,0.68766484]
[1768326671591,22.01755458,142.84,142.79,0.68766484]
[1768326671890,2.25670372,142.84,142.79,0.68766484]
[1768326672090,2.25670372,142.82,142.79,0.68766484]
[1768326672293,0.16594536,142.84,142.79,0.68766484]
[1768326672294,2.25670372,142.83,142.79,0.68766484]
[1768326672683,2.25670372,142.83,142.8,7.00280112]
[1768326673184,2.25670372,142.81,142.77,46.01041424]
[1768326673491,2.25670372,142.81,142.77,0.68766484]
[1768326673796,2.25670372,142.86,142.77,0.68766484]
[1768326674180,2.25670372,142.82,142.78,0.68766484]
[1768326674380,2.25670372,142.81,142.79,0.68766484]
[1768326675175,2.25670372,142.81,142.78,0.68766484]
[1768326675377,2.25670372,142.81,142.78,7.69137348]
[1768326675590,0.70117675,142.84,142.79,0.68766484]
[1768326675895,2.25670372,142.82,142.79,0.68766484]
[1768326676390,7.00035001,142.85,142.8,0.66653641]
[1768326676592,2.25670372,142.83,142.8,0.66653641]
[1768326676897,2.25670372,142.83,142.81,0.66653641]
[1768326677084,7.00035001,142.85,142.81,0.66653641]
[1768326677288,2.25670372,142.84,142.81,0.66653641]
[1768326677596,9.25705373,142.85,142.81,0.66653641]
[1768326677801,2.25670372,142.84,142.81,0.66653641]
[1768326678293,2.25670372,142.83,142.81,0.66653641]
[1768326679200,7.691915,142.85,142.81,0.66653641]
[1768326679399,2.25670372,142.83,142.81,0.66653641]
[1768326680771,2.25670372,142.83,142.78,2.25670372]
[1768326680772,0.68097476,142.81,142.75,4.30380139]
[1768326680975,0.16721677,142.8,142.75,11.30902373]
[1768326681202,2.25670372,142.8,142.76,0.66653641]
[1768326681406,2.25670372,142.8,142.76,7.67100251]
[1768326681811,9.2595566,142.8,142.76,7.67100251]
[1768326682103,9.2595566,142.8,142.76,0.66653641]
[1768326682492,9.2595566,142.8,142.76,7.671189]
[1768326684901,7.15371254,142.81,142.76,7.671189]
[1768326685197,9.41041626,142.81,142.77,0.66653641]
[1768326685784,0.15133009,142.82,142.77,0.66653641]
[1768326685985,0.69702191,142.84,142.79,0.66653641]
[1768326686191,9.95462825,142.84,142.8,7.66933753]
[1768326686703,2.25670372,142.83,142.8,0.66653641]
[1768326687001,2.25670372,142.81,142.78,0.66653641]
[1768326687198,2.25670372,142.81,142.76,20.45100644]
[1768326687402,2.25670372,142.81,142.77,0.66653641]
[1768326687706,2.25670372,142.81,142.77,7.67072655]
[1768326688003,0.69156499,142.82,142.78,7.67025754]
[1768326688004,2.94826871,142.82,142.78,7.67025754]
[1768326688208,2.25670372,142.82,142.78,7.67025754]
[1768326688506,2.25670372,142.83,142.79,0.66653641]
[1768326689408,2.94826871,142.82,142.78,7.00372113]
[1768326689808,2.25670372,142.81,142.77,7.67060363]
[1768326692105,2.94826871,142.82,142.78,0.66653641]
[1768326692305,2.25670372,142.82,142.78,0.66653641]
[1768326692501,7.00104256,142.84,142.78,0.66653641]
[1768326692716,7.1518698,142.85,142.8,0.66653641]
[1768326693010,2.25670372,142.85,142.81,7.66884717]
[1768326693312,9.94868315,142.85,142.81,7.66884717]
[1768326694211,9.94868315,142.85,142.81,0.66653641]
[1768326695915,9.94868315,142.85,142.81,7.66883258]
[1768326696301,9.94868315,142.85,142.81,0.66653641]
[1768326698713,9.94868315,142.85,142.81,7.66867585]
[1768326699208,6.99954324,142.87,142.83,0.66506299]
[1768326699416,6.99891019,142.88,142.84,0.66506299]
[1768326699618,7.17903961,142.88,142.84,0.66506299]
[1768326699796,9.43574333,142.88,142.84,0.66506299]
[1768326699997,2.91975737,142.87,142.82,0.66506299]
[1768326700406,2.91975737,142.87,142.83,0.66506299]
[1768326700993,6.99891019,142.88,142.84,0.66506299]
[1768326701896,9.25561391,142.88,142.84,0.66506299]
[1768326702421,6.99849353,142.89,142.85,0.66506299]
[1768326702602,2.25670372,142.89,142.85,0.66506299]
[1768326703320,20.54628251,142.9,142.85,0.66506299]
[1768326703526,2.25670372,142.89,142.85,0.66506299]
[1768326704627,19.87835083,142.9,142.87,0.66506299]
[1768326704811,22.13505455,142.9,142.86,7.66492299]
[1768326705201,7.09835083,142.9,142.86,7.66492299]
[1768326705402,0.2,142.91,142.89,0.66506299]
[1768326706901,0.2,142.91,142.87,9.2558876]
[1768326707100,0.2,142.91,142.88,7.66372298]
[1768326708128,2.45670372,142.91,142.88,7.66372298]
[1768326708514,2.45670372,142.91,142.88,0.66506299]
[1768326708707,7.19744344,142.91,142.88,0.66506299]
[1768326708909,2.25670372,142.9,142.88,0.66506299]
[1768326709120,7.19744344,142.91,142.88,0.66506299]
[1768326709121,9.45414716,142.91,142.88,0.66506299]
[1768326710351,0.18969181,142.89,142.85,0.66506299]
[1768326710527,2.91029061,142.88,142.84,53.67628735]
[1768326710719,2.25670372,142.88,142.85,7.66525803]
[1768326710933,2.25670372,142.88,142.85,0.66506299]
[1768326711556,2.25670372,142.88,142.85,7.66512586]
[1768326712434,7.17830715,142.9,142.86,0.66506299]
[1768326712636,2.25670372,142.88,142.86,0.66506299]
[1768326713156,2.25670372,142.87,142.85,0.66506299]
[1768326715451,7.66171142,142.89,142.85,0.66506299]
[1768326715631,2.25670372,142.88,142.85,0.66506299]
[1768326716327,7.66171142,142.89,142.85,0.66506299]
[1768326716539,2.25670372,142.87,142.85,0.66506299]
[1768326717461,2.25670372,142.88,142.85,7.66502067]
[1768326717764,2.25670372,142.88,142.86,0.66506299]
[1768326718336,2.25670372,142.87,142.86,0.66506299]
[1768326718757,2.25670372,142.87,142.84,7.66568151]
[1768326719244,2.25670372,142.88,142.85,7.66539958]
[1768326719558,2.25670372,142.87,142.85,0.66506299]
[1768326719762,2.25670372,142.87,142.83,7.66635244]
[1768326719961,2.25670372,142.87,142.84,0.66506299]
[1768326720557,2.25670372,142.87,142.85,0.66506299]
[1768326721371,3.52718775,142.87,142.85,0.66506299]
[1768326721755,6.99907671,142.88,142.81,12.76]
[1768326721756,4.19511943,142.86,142.81,12.76]
[1768326721961,3.52718775,142.82,142.78,12.76]
[1768326722267,3.52718775,142.83,142.78,12.76]
[1768326722565,3.52718775,142.82,142.78,12.76]
[1768326722869,0.66793168,142.85,142.78,12.76]
[1768326723050,3.52718775,142.83,142.79,7.00329154]
[1768326723250,3.52718775,142.84,142.79,24.5115204]
[1768326723856,3.52718775,142.83,142.8,0.66506299]
[1768326724987,3.52718775,142.83,142.8,7.66760778]
[1768326725188,3.52718775,142.82,142.8,7.66760778]
[1768326725363,7.00107432,142.84,142.8,7.66760778]
[1768326725551,3.52718775,142.82,142.8,7.66760778]
[1768326725754,3.52718775,142.82,142.81,0.71006777]
[1768326726467,7.66849417,142.85,142.81,0.71006777]
[1768326726669,3.52718775,142.82,142.81,0.71006777]
[1768326727082,3.49718775,142.82,142.81,0.71006777]
[1768326728551,3.49718775,142.82,142.79,7.71335931]
[1768326728859,3.49718775,142.82,142.8,0.71006777]
[1768326729066,3.52718775,142.82,142.8,0.71006777]
[1768326729786,3.52718775,142.83,142.81,0.71006777]
[1768326730458,0.65504433,142.88,142.81,7.71237853]
[1768326730773,0.65504433,142.85,142.81,7.71237853]
[1768326730974,3.52718775,142.83,142.81,7.71237853]
[1768326731375,3.52718775,142.83,142.82,0.71006777]
[1768326731571,0.65504433,142.85,142.82,0.71006777]
[1768326731874,3.52718775,142.83,142.82,0.71006777]
[1768326733982,3.52718775,142.83,142.8,7.71276626]
[1768326734183,0.65504433,142.8,142.76,0.71006777]
[1768326734387,3.52718775,142.78,142.76,7.71445317]
[1768326734885,3.52718775,142.78,142.77,0.71006777]
[1768326735089,3.52718775,142.78,142.77,7.71434037]
[1768326735780,0.65504433,142.81,142.77,7.71434037]
[1768326735968,3.52718775,142.8,142.78,0.71006777]
[1768326737483,3.52718775,142.83,142.79,0.69229166]
[1768326737886,3.52718775,142.83,142.79,7.69525827]
[1768326738184,3.52718775,142.82,142.79,7.69525827]
[1768326738568,3.52718775,142.83,142.79,7.69525827]
[1768326738768,4.20221354,142.83,142.79,7.69525827]
[1768326739289,0.67502579,142.83,142.79,7.69525827]
[1768326739490,4.20221354,142.83,142.79,7.69525827]
[1768326739690,0.67502579,142.81,142.77,13.45229166]
[1768326739864,3.52718775,142.79,142.76,0.69229166]
[1768326740065,3.52718775,142.79,142.76,7.69675767]
[1768326740263,4.20221354,142.8,142.76,7.69675767]
[1768326741700,3.52718775,142.79,142.76,7.69675767]
[1768326742069,3.32463417,142.79,142.76,7.69675767]
[1768326744289,3.99965996,142.79,142.75,7.00525394]
[1768326744669,0.67502579,142.78,142.75,7.00525394]
[1768326744870,0.67502579,142.78,142.75,24.51838879]
[1768326745189,0.67502579,142.8,142.76,0.69229166]
[1768326745371,3.52718775,142.81,142.77,0.69229166]
[1768326745577,0.67502579,142.79,142.76,0.69229166]
[1768326746199,3.52718775,142.8,142.76,0.69229166]
[1768326746501,3.52718775,142.79,142.76,7.00435204]
[1768326747010,4.20221354,142.8,142.76,7.00435204]
[1768326748092,0.67502579,142.8,142.77,0.69229166]
[1768326748296,4.20221354,142.8,142.77,0.69229166]
[1768326748809,4.20221354,142.8,142.76,7.6966437]
[1768326749502,3.52718775,142.81,142.77,0.69229166]
[1768326749684,4.20221354,142.81,142.77,0.69229166]
[1768326749884,4.20221354,142.8,142.77,0.69229166]
[1768326750311,0.67502579,142.8,142.77,7.00385351]
[1768326750478,4.20221354,142.8,142.77,7.00385351]
[1768326752815,3.52718775,142.8,142.77,7.69614517]
[1768326753191,4.20221354,142.8,142.77,7.00385351]
[1768326753914,0.67502579,142.8,142.77,7.00385351]
[1768326754090,4.17221352,142.8,142.77,7.00385351]
[1768326754297,17.50307787,142.84,142.78,7.69584107]
[1768326754478,3.52718775,142.81,142.78,7.69584107]
[1768326755510,3.52718775,142.8,142.78,0.69229166]
[1768326755708,3.52718775,142.8,142.76,7.70217524]
[1768326756316,4.18628593,142.8,142.76,7.70217524]
[1768326759226,0.65909818,142.76,142.74,1e-08]
[1768326759419,40.81731533,142.8,142.74,1e-08]
[1768326759420,3.52718775,142.75,142.74,1e-08]
[1768326759603,3.52718775,142.75,142.7,0.2]
[1768326759920,3.52718775,142.71,142.67,7.00884563]
[1768326760119,3.52718775,142.7,142.67,7.70648509]
[1768326760323,3.52718775,142.71,142.67,7.70648509]
[1768326760702,3.52718775,142.71,142.68,0.69763946]
[1768326761114,7.00623554,142.73,142.68,7.7061874]
[1768326761302,3.52718775,142.71,142.68,7.7061874]
[1768326761501,0.65909818,142.72,142.68,7.7061874]
[1768326761707,4.18628593,142.72,142.68,7.7061874]
[1768326761907,3.52718775,142.73,142.69,0.69763946]
[1768326763006,3.52718775,142.73,142.69,7.70558291]
[1768326764201,3.52718775,142.73,142.7,7.70533285]
[1768326764504,3.52718775,142.73,142.7,0.69763946]
[1768326764896,3.49718775,142.73,142.7,0.69763946]
[1768326765521,7.6650006,142.74,142.7,0.69763946]
[1768326765712,3.52718775,142.73,142.7,7.70529036]
[1768326766024,4.18628593,142.75,142.71,0.69763946]
[1768326766534,3.52718775,142.76,142.72,7.70436591]
[1768326766824,3.52718775,142.76,142.73,0.69763946]
[1768326767007,10.53077534,142.79,142.74,0.69763946]
[1768326767206,11.05146366,142.79,142.74,0.69763946]
[1768326768229,11.05146366,142.79,142.74,7.70316903]
[1768326768521,3.52718775,142.77,142.74,7.00552957]
[1768326768697,4.18628593,142.78,142.74,7.70316903]
[1768326769417,0.65909818,142.78,142.74,7.70316903]
[1768326769610,4.18490183,142.79,142.75,0.69763946]
[1768326769921,4.04787607,142.79,142.75,0.69763946]
[1768326770527,11.05120524,142.79,142.75,0.69763946]
[1768326771337,0.52205858,142.77,142.74,7.00552957]
[1768326771640,0.52205858,142.77,142.74,7.70316903]
[1768326772133,4.18628593,142.78,142.74,7.70316903]
[1768326772517,11.19028904,142.78,142.74,7.70316903]
[1768326774112,4.18628593,142.78,142.74,7.70316903]
[1768326774320,0.65909818,142.78,142.74,7.70316903]
[1768326774514,0.65909818,142.8,142.77,0.69763946]
[1768326774723,0.52068832,142.8,142.76,11.22959044]
[1768326774922,0.52068832,142.8,142.76,7.70240269]
[1768326775324,4.04787607,142.8,142.76,7.70240269]
[1768326776330,3.52718775,142.8,142.77,0.69763946]
[1768326776533,3.52718775,142.81,142.77,0.69763946]
[1768326776832,0.65909818,142.79,142.76,7.00476323]
[1768326778039,3.52718775,142.8,142.77,0.69763946]
[1768326779351,7.66155195,142.81,142.77,0.69763946]
[1768326779519,3.52718775,142.8,142.77,0.69763946]
[1768326780542,3.52718775,142.81,142.78,0.69763946]
[1768326781448,2.25936722,142.81,142.78,0.69763946]
[1768326781943,7.0009961,142.84,142.78,0.69763946]
[1768326782114,2.25936722,142.84,142.79,0.69763946]
[1768326782322,9.26022882,142.84,142.81,0.69763946]
[1768326782639,9.26022882,142.84,142.81,0.6376395]
[1768326783022,2.25936722,142.83,142.81,0.6376395]
[1768326783224,2.25936722,142.83,142.81,0.5776395]
[1768326783541,7.52127033,142.85,142.81,0.5176395]
[1768326783717,9.78063755,142.85,142.81,0.5176395]
[1768326784042,2.25936722,142.84,142.81,0.5176395]
[1768326785236,2.25936722,142.83,142.81,0.5176395]
[1768326786644,2.25936722,142.84,142.81,0.5176395]
[1768326789245,2.25936722,142.84,142.81,7.51976185]
[1768326789447,2.25936722,142.84,142.81,0.5176395]
[1768326790142,2.25936722,142.83,142.81,0.5176395]
[1768326791046,2.25936722,142.83,142.81,7.519939]
[1768326791520,2.25936722,142.83,142.81,0.5176395]
[1768326795339,0.64416679,142.81,142.77,7.71366534]
[1768326795527,2.25936722,142.8,142.77,7.00392639]
[1768326796547,2.25936722,142.81,142.76,7.71431319]
[1768326796741,2.25936722,142.8,142.76,7.00457424]
[1768326796948,2.25936722,142.81,142.77,0.67622463]
[1768326797154,7.00108404,142.84,142.79,0.67622463]
[1768326797453,2.25936722,142.85,142.79,0.67622463]
[1768326797626,2.88024637,142.86,142.81,2.93559185]
[1768326797826,2.88024637,142.86,142.82,0.67622463]
[1768326798339,2.35836722,142.85,142.81,0.67622463]
[1768326798536,2.35836722,142.85,142.81,7.67805654]
[1768326799051,0.099,142.85,142.81,7.67805654]
[1768326799551,0.61566035,142.84,142.81,7.00183191]
[1768326800857,0.61566035,142.84,142.8,0.67622463]
[1768326801061,0.10416661,142.83,142.8,7.00269992]
[1768326802982,9.26025025,142.84,142.8,7.00269992]
[1768326803251,9.8811294,142.84,142.8,0.67622463]
[1768326804160,9.8811294,142.84,142.8,7.67869871]
[1768326804743,2.25936722,142.83,142.8,7.67869871]
[1768326805060,9.8811294,142.84,142.8,7.67869871]
[1768326806268,2.87502757,142.82,142.77,58.79041424]
[1768326806562,2.86991263,142.8,142.76,18.18751907]
[1768326806960,2.86991263,142.8,142.77,7.00426299]
[1768326808862,12.78,142.84,142.77,7.00426299]
[1768326808863,12.78,142.84,142.78,0.67622463]
[1768326809163,2.25936722,142.82,142.78,0.67622463]
[1768326809467,2.25936722,142.81,142.78,0.67622463]
[1768326809971,2.25936722,142.8,142.78,0.67622463]
[1768326811671,7.62316902,142.82,142.78,0.67622463]
[1768326811970,2.25936722,142.8,142.78,0.67622463]
[1768326812172,2.25936722,142.8,142.78,7.67990234]
[1768326812364,2.25936722,142.81,142.78,7.67990234]
[1768326813668,2.25936722,142.81,142.78,0.67622463]
[1768326814085,7.62233507,142.83,142.79,0.67622463]
[1768326814269,2.25936722,142.81,142.78,7.67972871]
[1768326814475,2.25936722,142.8,142.77,7.00404506]
[1768326814680,2.25936722,142.8,142.77,0.67622463]
[1768326815176,2.36353383,142.8,142.76,0.69859597]
[1768326815965,2.25936722,142.79,142.76,0.69859597]
[1768326816167,2.25936722,142.77,142.74,13.47859597]
[1768326816369,2.25936722,142.76,142.73,7.70442519]
[1768326816677,2.37842489,142.74,142.7,7.70602653]
[1768326816857,2.25936722,142.73,142.7,7.70602653]
[1768326817261,2.25936722,142.74,142.71,7.70577603]
[1768326817472,12.78,142.77,142.72,0.69859597]
[1768326817473,0.62087915,142.77,142.72,0.69859597]
[1768326817660,2.25936722,142.76,142.73,7.70482511]
[1768326818662,2.25936722,142.77,142.74,0.69859597]
[1768326818955,2.25936722,142.79,142.74,0.69859597]
[1768326820682,2.25936722,142.79,142.75,7.70384991]
[1768326821982,2.25936722,142.78,142.75,7.70384991]
[1768326822287,2.25936722,142.79,142.75,7.70384991]
[1768326822659,2.36353383,142.78,142.74,7.00552074]
[1768326822983,2.25936722,142.77,142.73,20.48454486]
[1768326823178,2.25936722,142.77,142.74,7.70427006]
[1768326823485,2.36353383,142.78,142.74,7.70427006]
[1768326823957,2.25936722,142.77,142.74,7.70427006]
[1768326824872,9.87423047,142.77,142.73,12.78]
[1768326825072,2.25936722,142.76,142.73,12.78]
[1768326825961,2.25936722,142.76,142.72,7.70505512]
[1768326827589,7.00391328,142.78,142.74,0.69859597]
[1768326827786,2.25936722,142.78,142.74,0.69859597]
[1768326829589,2.25936722,142.78,142.75,0.69859597]
[1768326829794,9.26317909,142.78,142.74,7.7039546]
[1768326830088,9.36217909,142.78,142.74,7.7039546]
[1768326830286,2.25936722,142.77,142.74,7.7039546]
[1768326830874,2.25936722,142.76,142.74,0.69859597]
[1768326831077,2.25936722,142.76,142.72,7.70517368]
[1768326831381,2.25936722,142.75,142.72,7.70517368]
[1768326831575,2.25936722,142.74,142.71,0.69859597]
[1768326831772,2.25936722,142.74,142.71,7.70550035]
[1768326831989,1e-08,142.74,142.71,7.70550035]
[1768326832495,0.10416661,142.76,142.72,7.70531317]
[1768326832697,7.62525141,142.77,142.73,0.69859597]
[1768326832879,2.25936722,142.75,142.73,0.69859597]
[1768326833192,2.25936722,142.77,142.73,0.69859597]
[1768326834397,7.10309537,142.78,142.74,0.69859597]
[1768326834599,2.25936722,142.77,142.74,0.69859597]
[1768326835683,2.25936722,142.76,142.74,0.69859597]
[1768326836085,2.25936722,142.76,142.74,7.7043336]
[1768326836692,2.25936722,142.77,142.74,7.7043336]
[1768326837001,2.25936722,142.77,142.74,0.69859597]
[1768326837191,24.5134067,142.78,142.72,7.00635836]
[1768326837394,24.5134067,142.78,142.71,7.70568596]
[1768326837590,2.25936722,142.74,142.71,7.00708999]
[1768326837782,59.52380952,142.8,142.71,7.00708999]
[1768326837985,2.25936722,142.75,142.71,7.70568596]
[1768326838795,59.52380952,142.8,142.71,7.70568596]
[1768326839101,1.04156051,142.74,142.71,7.70568596]
[1768326839803,2.35836722,142.75,142.71,7.70568596]
[1768326841403,2.77101597,142.76,142.71,7.70568596]
[1768326841581,9.26371836,142.77,142.72,0.69859597]
[1768326841898,9.36271836,142.77,142.72,0.69859597]
[1768326842079,7.51554817,142.78,142.72,0.69859597]
[1768326842274,2.25936722,142.77,142.72,0.69859597]
[1768326842475,2.25936722,142.77,142.73,7.70483151]
[1768326842896,7.51497003,142.79,142.74,0.69859597]
[1768326843203,2.25936722,142.78,142.74,0.69859597]
[1768326843409,3.53188842,142.78,142.74,0.69859597]
[1768326844186,7.00289591,142.8,142.74,0.69859597]